[Event "110th Anniversary Open 2020"]
[Site "Hilleroed"]
[Date "2020.02.15"]
[Round "9.8"]
[White "Jorgensen, Dennis"]
[Black "Jensen, Thore Nyboe"]
[Result "1/2-1/2"]
[ECO "D42"]
[WhiteElo "2154"]
[BlackElo "2006"]
[Annotator "ChessBase"]
[PlyCount "86"]
[EventDate "2020.02.08"]
[EventType "swiss"]
[EventCountry "DEN"]
[SourceTitle "playchess.com"]
[Source "ChessBase"]
[SourceQuality "1"]
[TimeControl "40/5400+30:1800+30"]

1. d4 {[%emt 0:00:00]} Nf6 {[%emt 0:00:00]} 2. Nf3 {[%emt 0:00:00]} e6 {[%emt 0:00:09]} 3. e3 {[%emt 0:00:00]} c5 {[%emt 0:00:29]} 4. c4 {[%emt 0:00:34]} cxd4 {[%emt 0:00:19]} 5. exd4 {[%emt 0:00:15]} d5 {[%emt 0:00:09]} 6. Nc3 {[%emt 0:00:26]} Be7 {[%emt 0:03:58]} 7. cxd5 {[%emt 0:02:30]} Nxd5 {[%emt 0:02:13]} 8. Bd3 {[%emt 0:00:14]} Nc6 {[%emt 0:08:18]} 9. O-O {[%emt 0:00:26]} O-O {[%emt 0:04:16]} 10. Re1 {[%emt 0:01:19]} Bf6 {[%emt 0:05:49]} 11. a3 {[%emt 0:05:02]} Nxc3 {[%emt 0:01:32]} 12. bxc3 {[%emt 0:00:12]} b6 {[%emt 0:06:00]} 13. Qc2 {[%emt 0:11:12]} g6 {[%emt 0:07:34]} 14. Bh6 {[%emt 0:02:45]} Re8 {[%emt 0:06:08]} 15. Be4 {[%emt 0:08:35]} Bb7 {[%emt 0:02:53]} 16. Rad1 {[%emt 0:07:31]} Qc7 {[%emt 0:01:39]} 17. Qd2 {[%emt 0:03:52]} Rad8 {[%emt 0:06:38]} 18. Bg5 {[%emt 0:06:10]} Qe7 {[%emt 0:08:00]} 19. Qf4 {[%emt 0:00:33]} Bxg5 {[%emt 0:01:23]} 20. Nxg5 {[%emt 0:00:45]} f6 {[%emt 0:04:16]} 21. Nf3 {[%emt 0:06:21]} Kg7 {[%emt 0:02:39]} 22. Qc1 {[%emt 0:05:15]} Na5 {[%emt 0:02:33]} 23. h4 {[%emt 0:00:32]} Nc4 {[%emt 0:01:38]} 24. a4 {[%emt 0:05:03]} Nd6 {[%emt 0:04:46]} 25. Bxb7 {[%emt 0:01:06]} Qxb7 {[%emt 0:00:04]} 26. c4 {[%emt 0:10:29]} Rc8 {[%emt 0:01:25]} 27. c5 {[%emt 0:00:27]} Nf5 {[%emt 0:01:39]} 28. Qb2 {[%emt 0:01:43]} Qd5 {[%emt 0:04:52]} 29. cxb6 {[%emt 0:00:46]} Rb8 {[%emt 0:00:37]} 30. a5 {[%emt 0:00:38]} Qxa5 {[%emt 0:00:56]} 31. b7 {[%emt 0:01:08]} Re7 {[%emt 0:01:42]} 32. Ra1 {[%emt 0:02:11]} Qb6 {[%emt 0:00:40]} 33. Qa2 {[%emt 0:01:30]} Rbxb7 {[%emt 0:01:27]} 34. Rab1 {[%emt 0:00:16]} Qd6 {[%emt 0:05:07]} 35. Rxb7 {[%emt 0:00:20]} Rxb7 {[%emt 0:00:02]} 36. Rxe6 {[%emt 0:00:45]} Qf4 {[%emt 0:00:13]} 37. d5 {[%emt 0:07:26]} Rd7 {[%emt 0:03:27]} 38. Ra6 {[%emt 0:04:32]} Qc1+ {[%emt 0:00:55]} 39. Kh2 {[%emt 0:00:04]} Qf4+ {[%emt 0:00:05]} 40. Kg1 {[%emt 0:00:58]} Qc1+ {[%emt 0:00:52]} 41. Kh2 {[%emt 0:30:08]} Qf4+ {[%emt 0:30:45]} 42. Kg1 {[%emt 0:00:06]} Qc1+ {[%emt 0:00:00]} 43. Kh2 {[%emt 0:00:00]} Qf4+ {[%emt 0:00:00]} 1/2-1/2

[Event "110th Anniversary Open 2020"]
[Site "Hilleroed"]
[Date "2020.02.15"]
[Round "9.9"]
[White "Bronnum, Jan"]
[Black "Madsen, Michael Ole"]
[Result "0-1"]
[ECO "D02"]
[WhiteElo "2034"]
[BlackElo "2042"]
[Annotator "ChessBase"]
[PlyCount "116"]
[EventDate "2020.02.08"]
[EventType "swiss"]
[EventCountry "DEN"]
[SourceTitle "playchess.com"]
[Source "ChessBase"]
[SourceQuality "1"]
[TimeControl "40/5400+30:1800+30"]

1. d4 {[%emt 0:00:00]} d5 {[%emt 0:00:00]} 2. Bf4 {[%emt 0:00:00]} c5 {[%emt 0:00:00]} 3. c3 {[%emt 0:00:15]} Nc6 {[%emt 0:00:18]} 4. e3 {[%emt 0:00:39]} Nf6 {[%emt 0:00:27]} 5. Nf3 {[%emt 0:00:42]} Qb6 {[%emt 0:02:18]} 6. Qb3 {[%emt 0:02:24]} c4 {[%emt 0:02:16]} 7. Qxb6 {[%emt 0:01:39]} axb6 {[%emt 0:00:05]} 8. Na3 {[%emt 0:02:08]} Bf5 {[%emt 0:01:33]} 9. Nb5 {[%emt 0:01:25]} Ra5 {[%emt 0:01:00]} 10. Nc7+ {[%emt 0:30:36]} Kd7 {[%emt 0:02:57]} 11. h3 {[%emt 0:03:12]} e6 {[%emt 0:01:55]} 12. a4 {[%emt 0:09:18]} Bc2 {[%emt 0:01:54]} 13. Nb5 {[%emt 0:01:16]} Rxa4 {[%emt 0:11:11]} 14. Rxa4 {[%emt 0:03:04]} Bxa4 {[%emt 0:00:23]} 15. Ne5+ {[%emt 0:00:08]} Nxe5 {[%emt 0:01:14]} 16. dxe5 {[%emt 0:00:09]} Bxb5 {[%emt 0:00:13]} 17. exf6 {[%emt 0:00:05]} gxf6 {[%emt 0:00:36]} 18. Be2 {[%emt 0:10:00]} Bd6 {[%emt 0:02:27]} 19. Bxd6 {[%emt 0:01:20]} Kxd6 {[%emt 0:00:05]} 20. Kd2 {[%emt 0:00:09]} Ra8 {[%emt 0:00:30]} 21. Kc2 {[%emt 0:02:12]} Ba4+ {[%emt 0:00:49]} 22. Kb1 {[%emt 0:00:20]} e5 {[%emt 0:01:36]} 23. f4 {[%emt 0:00:36]} Bd7 {[%emt 0:03:57]} 24. g4 {[%emt 0:01:54]} Bc6 {[%emt 0:04:04]} 25. Bf3 {[%emt 0:07:34]} b5 {[%emt 0:02:16]} 26. Rd1 {[%emt 0:00:38]} Kc5 {[%emt 0:00:50]} 27. Rf1 {[%emt 0:03:40]} e4 {[%emt 0:03:40]} 28. Bd1 {[%emt 0:00:56]} b4 {[%emt 0:00:36]} 29. Rg1 {[%emt 0:01:10]} b5 {[%emt 0:01:14]} 30. g5 {[%emt 0:00:42]} Rg8 {[%emt 0:01:06]} 31. h4 {[%emt 0:00:40]} bxc3 {[%emt 0:03:54]} 32. bxc3 {[%emt 0:00:03]} Bd7 {[%emt 0:00:22]} 33. Bh5 {[%emt 0:00:49]} Be6 {[%emt 0:02:47]} 34. Kb2 {[%emt 0:01:51]} b4 {[%emt 0:03:22]} 35. cxb4+ {[%emt 0:01:24]} Kxb4 {[%emt 0:00:07]} 36. Kc2 {[%emt 0:00:13]} fxg5 {[%emt 0:02:31]} 37. hxg5 {[%emt 0:01:16]} Kc5 {[%emt 0:01:55]} 38. Ra1 {[%emt 0:01:53]} Kb6 {[%emt 0:01:02]} 39. Kc3 {[%emt 0:01:12]} f6 {[%emt 0:18:02]} 40. gxf6 {[%emt 0:04:46]} Rf8 {[%emt 0:00:32]} 41. f7 {[%emt 0:30:13]} Bxf7 {[%emt 0:30:30]} 42. Bxf7 {[%emt 0:00:05]} Rxf7 {[%emt 0:00:14]} 43. Kd4 {[%emt 0:00:35]} Rf5 {[%emt 0:06:23]} 44. Rh1 {[%emt 0:00:20]} h5 {[%emt 0:00:11]} 45. Rb1+ {[%emt 0:00:05]} Kc6 {[%emt 0:00:21]} 46. Ra1 {[%emt 0:00:23]} Kd6 {[%emt 0:01:17]} 47. Ra6+ {[%emt 0:01:04]} Ke7 {[%emt 0:00:25]} 48. Ra7+ {[%emt 0:01:58]} Kf6 {[%emt 0:00:37]} 49. Ra6+ {[%emt 0:00:16]} Kg7 {[%emt 0:00:28]} 50. Ra7+ {[%emt 0:00:06]} Kg6 {[%emt 0:00:27]} 51. Ra6+ {[%emt 0:00:25]} Rf6 {[%emt 0:06:02]} 52. Ra1 {[%emt 0:01:38]} Rd6 {[%emt 0:04:40]} 53. Rg1+ {[%emt 0:00:00]} Kh6 {[%emt 0:00:00]} 54. f5 {[%emt 0:00:00]} c3 {[%emt 0:00:00]} 55. Ke5 {[%emt 0:00:00]} Rd8 {[%emt 0:00:00]} 56. Rg6+ {[%emt 0:00:00]} Kh7 {[%emt 0:00:00]} 57. Rc6 {[%emt 0:00:00]} d4 {[%emt 0:00:00]} 58. exd4 {[%emt 0:00:00]} e3 {[%emt 0:00:00]} 0-1

[Event "110th Anniversary Open 2020"]
[Site "Hilleroed"]
[Date "2020.02.15"]
[Round "9.10"]
[White "Hansen, Verner"]
[Black "Andersen, Soren Bull"]
[Result "0-1"]
[ECO "D80"]
[WhiteElo "1761"]
[BlackElo "2100"]
[Annotator "NA"]
[PlyCount "78"]
[EventDate "2020.02.08"]
[EventType "swiss"]
[EventCountry "DEN"]
[SourceTitle "playchess.com"]
[Source "ChessBase"]
[SourceQuality "1"]
[TimeControl "40/5400+30:1800+30"]

{[%evp 8,68,66,74,71,62,72,64,74,45,66,2,54,41,77,71,68,61,95,31,58,27,63,65,270,138,177,177,210,72,97,21,80,27,7,14,34,32767,32767,-30,32767,-27,-29,-39,-27,-41,-18,-65,-42,-66,32767,32767,-16,-510,-773,-531,-387,-379,-151,-172,-135,-227,-258]} 1. d4 {[%emt 0:00:25]} Nf6 {[%emt 0:00:40]} 2. c4 {[%emt 0:01:04]} g6 {[%emt 0:00:09]} 3. Nc3 {[%emt 0:00:31]} d5 {[%emt 0:00:34]} 4. Bg5 {[%emt 0:01:37]} Be6 {[%emt 0:09:14] [#]} 5. cxd5 $146 {[%emt 0:10:23]} ({Predecessor:} 5. Bxf6 exf6 6. cxd5 Bxd5 7. e4 Bc6 8. Bc4 Bg7 9. d5 Bd7 10. Qb3 b6 11. d6 O-O 12. dxc7 Qxc7 {½-½ (38) Rocha,M-De Queiroz,G (1826) Brasilia 2013}) 5... Nxd5 {[%emt 0:00:49]} 6. e4 {[%emt 0:00:43] D80: Grünfeld: Unusual White 4th moves and 4 Bg5.} Nxc3 {[%emt 0:00:17]} 7. bxc3 {[%emt 0:00:14]} Bg7 {[%emt 0:00:38]} 8. Bb5+ {[%emt 0:01:32]} c6 {[%emt 0:00:26]} 9. Bd3 {[%emt 0:00:11]} (9. Be2 $14) 9... O-O {[%emt 0:00:09]} (9... c5 $5) 10. Qd2 {[%emt 0:02:52]} c5 {[%emt 0:04:51]} 11. d5 {[%emt 0:02:48]} c4 {[%emt 0:17:22]} 12. Bc2 {[%emt 0:02:04]} ({Don't play} 12. Bxc4 $6 Qc7 $11) 12... Bd7 {[%emt 0:03:00]} 13. Bh6 {[%emt 0:00:57]} Bxh6 {[%emt 0:03:35]} 14. Qxh6 {[%emt 0:00:38]} Qa5 {[%emt 0:00:17]} 15. Ne2 {[%emt 0:02:59]} f5 $2 {[%emt 0:11:24]} (15... f6 $14) 16. O-O {[%emt 0:02:49]} fxe4 {[%emt 0:01:42]} 17. Bxe4 {[%emt 0:06:42]} Bf5 {[%emt 0:00:46] [#]} 18. Qe3 {[%emt 0:02:33]} (18. Ng3 $1 $18 {and the rest is easy.} Bxe4 19. Nxe4) 18... Na6 {[%emt 0:11:11]} 19. Rfd1 {[%emt 0:12:03]} (19. Bf3 $16) 19... Nc5 {[%emt 0:00:48]} 20. Bxf5 {[%emt 0:00:39]} Rxf5 {[%emt 0:00:02]} 21. d6 {[%emt 0:04:59]} exd6 {[%emt 0:03:48]} 22. Rxd6 {[%emt 0:01:51]} Qc7 {[%emt 0:00:05]} 23. Rd4 {[%emt 0:03:45]} b5 {[%emt 0:01:30]} 24. Ng3 {[%emt 0:01:28]} Re5 {[%emt 0:00:34]} 25. Qd2 {[%emt 0:01:55]} Rae8 {[%emt 0:00:34]} 26. f3 {[%emt 0:05:09]} Qe7 {[%emt 0:06:12]} 27. Rd5 {[%emt 0:04:33]} Nd3 {[%emt 0:02:04]} 28. Rxe5 {[%emt 0:01:19]} Qxe5 {[%emt 0:00:02]} 29. Ne4 {[%emt 0:00:10] [#]} a5 {[%emt 0:01:48]} (29... b4 $1 $17 {[%mdl 512]}) 30. Qg5 $2 {[%emt 0:05:44]} (30. a3 $1 $11) 30... Qxg5 {[%emt 0:00:26]} 31. Nxg5 {[%emt 0:00:08]} Re2 {[%emt 0:00:07]} 32. Ne4 {[%emt 0:00:29]} Rc2 $2 {[%emt 0:01:52]} (32... b4 $19 {and Black stays clearly on top.} 33. Kf1 Rc2) 33. a3 {[%emt 0:01:18]} Nf4 {[%emt 0:01:48]} 34. g3 {[%emt 0:05:09]} (34. Rb1 $17 {keeps fighting.}) 34... Ne2+ $19 {[%emt 0:00:20]} 35. Kf1 {[%emt 0:02:08]} Nxc3 {[%emt 0:00:18]} 36. Nd6 {[%emt 0:00:35]} Rxh2 {[%emt 0:00:17]} 37. Kg1 {[%emt 0:00:47]} Rd2 {[%emt 0:00:35]} 38. Nb7 {[%emt 0:02:39]} a4 {[%emt 0:01:02]} 39. Rc1 {[%emt 0:01:01]} Ne2+ {[%emt 0:00:06]} 0-1

[Event "110th Anniversary Open 2020"]
[Site "Hilleroed"]
[Date "2020.02.15"]
[Round "9.11"]
[White "Kvendseth, Thyra"]
[Black "Lohia, Sohum"]
[Result "1-0"]
[ECO "A07"]
[WhiteElo "1889"]
[BlackElo "2025"]
[Annotator "NA"]
[PlyCount "67"]
[EventDate "2020.02.08"]
[EventType "swiss"]
[EventCountry "DEN"]
[SourceTitle "playchess.com"]
[Source "ChessBase"]
[SourceQuality "1"]
[TimeControl "40/5400+30:1800+30"]

{[%evp 8,54,0,-10,0,0,0,-38,-24,-35,-22,-43,-35,-68,-68,-51,-29,-24,-43,-97,21,9,154,135,196,212,324,361,343,385,351,393,817,32767,934,1143,900,415,420,32767,414,0,196,509,371,585,615,641,613]} 1. Nf3 {[%emt 0:00:00]} g6 {[%emt 0:00:00]} 2. g3 {[%emt 0:00:00]} Bg7 {[%emt 0:00:00]} 3. Bg2 {[%emt 0:00:00]} e5 {[%emt 0:00:00]} 4. d3 {[%emt 0:02:37]} Ne7 {[%emt 0:00:03]} 5. O-O {[%emt 0:00:54]} d5 {[%emt 0:00:27]} 6. e4 {[%emt 0:00:54]} O-O {[%emt 0:03:06]} 7. Nc3 {[%emt 0:01:35]} d4 {[%emt 0:03:26]} 8. Ne2 {[%emt 0:00:14]} c5 {[%emt 0:01:33] A07: Réti Opening: New York and Capablanca Systems.} 9. c3 {[%emt 0:05:54]} Nbc6 {[%emt 0:03:48]} 10. Nh4 {[%emt 0:10:38] [#]} dxc3 $146 {[%emt 0:12:00]} ({Predecessor:} 10... h6 11. f4 exf4 12. gxf4 Bg4 13. c4 f5 14. e5 g5 15. fxg5 hxg5 16. Bxg5 Bxe5 {½-½ (27) Grozdanic,V (2016)-Drmic,T (2142) Rabac 2003}) 11. bxc3 {[%emt 0:01:35]} Be6 {[%emt 0:04:30]} 12. Be3 {[%emt 0:03:35]} Qa5 {[%emt 0:12:27]} 13. f4 {[%emt 0:07:46]} Bg4 {[%emt 0:05:53]} (13... Rfd8 $17 14. f5 Bc4 {[%mdl 64] Pin}) 14. f5 {[%emt 0:04:54]} Bxe2 {[%emt 0:03:10]} (14... Bf6 $11) 15. Qxe2 {[%emt 0:00:07]} f6 {[%emt 0:03:37]} 16. fxg6 {[%emt 0:07:34]} hxg6 {[%emt 0:01:20]} (16... Nxg6 $142 17. Nf5 Rad8) 17. Bh3 {[%emt 0:05:22]} Nd8 {[%emt 0:05:40]} 18. Qg4 {[%emt 0:08:16]} g5 {[%emt 0:07:12] [#]} 19. Bxg5 $1 {[%emt 0:07:14]} fxg5 $2 {[%emt 0:00:21]} (19... Qxc3 20. Be3 Rf7) 20. Rxf8+ {[%emt 0:00:13]} Kxf8 {[%emt 0:01:43]} 21. Rf1+ {[%emt 0:00:19]} Kg8 {[%emt 0:00:16]} 22. Qxg5 {[%emt 0:06:11]} (22. Qd7 $142 Ndc6 23. Qe6+ Kh7 {[#]} 24. Qf7 $1 {[%mdl 512]}) 22... Qc7 {[%emt 0:04:45]} 23. Qh5 {[%emt 0:08:19]} Qc6 {[%emt 0:07:51]} 24. Qg5 $2 {[%emt 0:03:41]} (24. Bf5 $18 Bh6 25. Bg6 Nxg6 26. Nxg6) 24... Qc7 {[%emt 0:00:17] [#]} 25. Nf5 $1 {[%emt 0:02:39]} Nxf5 {[%emt 0:00:35]} 26. Bxf5 {[%emt 0:00:39]} Qd6 {[%emt 0:02:22] [#]} 27. Bg6 $1 {[%emt 0:00:16]} Qd7 $18 {[%emt 0:04:03]} 28. Qh4 {[%emt 0:02:44]} Bh8 {[%emt 0:02:48]} 29. Qh6 {[%emt 0:01:29]} Nc6 {[%emt 0:06:15]} 30. Bh7+ {[%emt 0:00:22]} Qxh7 {[%emt 0:00:34]} 31. Qe6+ {[%emt 0:00:04]} Kg7 {[%emt 0:00:53]} 32. Rf7+ {[%emt 0:00:05]} Kg8 {[%emt 0:00:06]} 33. Rxb7+ {[%emt 0:00:08]} Kf8 {[%emt 0:00:21]} 34. Rxh7 {[%emt 0:00:07]} 1-0